[Event "Early-Titled-Tuesday-Blitz-April-02-2024"]
[Site "Chess.com"]
[Date "2024.04.02"]
[Round "3"]
[White "AsaHoffmann"]
[Black "campochess"]
[Result "1-0"]
[WhiteElo "2400"]
[BlackElo "2181"]
[TimeControl "180+1"]
[EndTime "8:28:33 PDT"]
[Termination "AsaHoffmann won on time"]

1. d4 {[%clk 0:02:47.5]} 1... Nf6 {[%clk 0:02:58.7]} 2. Bg5 {[%clk 0:02:44]}
2... e6 {[%clk 0:02:57.1]} 3. Nd2 {[%clk 0:02:43.7]} 3... c5 {[%clk 0:02:55.9]}
4. e3 {[%clk 0:02:43.3]} 4... cxd4 {[%clk 0:02:55.1]} 5. exd4 {[%clk 0:02:43.2]}
5... Nc6 {[%clk 0:02:55]} 6. c3 {[%clk 0:02:42.9]} 6... Be7 {[%clk 0:02:54.9]}
7. Bd3 {[%clk 0:02:42.6]} 7... d5 {[%clk 0:02:50.4]} 8. f4 {[%clk 0:02:41.6]}
8... h6 {[%clk 0:02:48.9]} 9. Bh4 {[%clk 0:02:41.5]} 9... Qc7 {[%clk 0:02:41.7]}
10. Qf3 {[%clk 0:02:40.9]} 10... Bd7 {[%clk 0:02:33.9]} 11. Ne2 {[%clk
0:02:40.5]} 11... a6 {[%clk 0:02:26.8]} 12. Bg3 {[%clk 0:02:26.2]} 12... Bd6
{[%clk 0:02:24.9]} 13. O-O {[%clk 0:02:24.7]} 13... Ne7 {[%clk 0:02:24.5]} 14.
Rac1 {[%clk 0:02:14.6]} 14... b5 {[%clk 0:02:23.2]} 15. b3 {[%clk 0:02:13.6]}
15... Qb6 {[%clk 0:02:22.7]} 16. c4 {[%clk 0:02:12.4]} 16... Ba3 {[%clk
0:02:15.9]} 17. Rc2 {[%clk 0:02:05.3]} 17... Bc6 {[%clk 0:02:14.6]} 18. c5
{[%clk 0:02:00.9]} 18... Qb7 {[%clk 0:02:04.9]} 19. f5 {[%clk 0:02:00.3]} 19...
O-O {[%clk 0:01:55.8]} 20. Be5 {[%clk 0:01:55.1]} 20... Ne4 {[%clk 0:01:38.5]}
21. f6 {[%clk 0:01:43.7]} 21... gxf6 {[%clk 0:01:32.5]} 22. Bxf6 {[%clk
0:01:41.4]} 22... Ng6 {[%clk 0:01:32.4]} 23. Ng3 {[%clk 0:01:38.4]} 23... Bb4
{[%clk 0:00:47.5]} 24. Ndxe4 {[%clk 0:01:34.1]} 24... dxe4 {[%clk 0:00:46.7]}
25. Bxe4 {[%clk 0:01:34.1]} 25... Bxe4 {[%clk 0:00:45.8]} 26. Qxe4 {[%clk
0:01:34]} 26... Qxe4 {[%clk 0:00:44.7]} 27. Nxe4 {[%clk 0:01:34]} 27... Rfd8
{[%clk 0:00:31.3]} 28. c6 {[%clk 0:01:32.4]} 28... Rd5 {[%clk 0:00:27.1]} 29. c7
{[%clk 0:01:30.2]} 29... Rc8 {[%clk 0:00:27.1]} 30. Rfc1 {[%clk 0:01:15.4]}
30... Ba5 {[%clk 0:00:25.1]} 31. Rc6 {[%clk 0:01:12.9]} 31... Nf4 {[%clk
0:00:19.2]} 32. R1c2 {[%clk 0:00:59]} 32... Rf5 {[%clk 0:00:18.1]} 33. Be5
{[%clk 0:00:58.2]} 33... Nd5 {[%clk 0:00:17.4]} 34. Ng3 {[%clk 0:00:46.7]} 34...
Rxe5 {[%clk 0:00:17]} 35. dxe5 {[%clk 0:00:44.8]} 35... Nb4 {[%clk 0:00:11.3]}
36. Ne4 {[%clk 0:00:40.6]} 36... Nxc6 {[%clk 0:00:10.5]} 37. Rxc6 {[%clk
0:00:40.3]} 37... Rxc7 {[%clk 0:00:10.5]} 38. Rxa6 {[%clk 0:00:39.7]} 38... Be1
{[%clk 0:00:09.2]} 39. Kf1 {[%clk 0:00:39.4]} 39... Bh4 {[%clk 0:00:08]} 40. g3
{[%clk 0:00:39.4]} 40... Be7 {[%clk 0:00:08]} 41. Rb6 {[%clk 0:00:36.2]} 41...
b4 {[%clk 0:00:08.2]} 42. Nd6 {[%clk 0:00:33.6]} 42... Kg7 {[%clk 0:00:08]} 43.
Nc4 {[%clk 0:00:33]} 43... Rc5 {[%clk 0:00:06.9]} 44. Ra6 {[%clk 0:00:32.2]}
44... Rd5 {[%clk 0:00:06.9]} 45. Ke2 {[%clk 0:00:32.2]} 45... Bg5 {[%clk
0:00:05.8]} 46. Ra4 {[%clk 0:00:30.7]} 46... Be7 {[%clk 0:00:04.8]} 47. h4
{[%clk 0:00:29.1]} 47... Rd4 {[%clk 0:00:04.8]} 48. Ke3 {[%clk 0:00:28.1]} 48...
Rg4 {[%clk 0:00:04.5]} 49. Kf3 {[%clk 0:00:28]} 49... h5 {[%clk 0:00:04.7]} 50.
Ra7 {[%clk 0:00:27]} 50... Bc5 {[%clk 0:00:02.9]} 51. Rc7 {[%clk 0:00:25.2]}
51... Bd4 {[%clk 0:00:02.9]} 52. Nd6 {[%clk 0:00:23.6]} 52... Bxe5 {[%clk
0:00:02.2]} 53. Rxf7+ {[%clk 0:00:23.2]} 53... Kg6 {[%clk 0:00:02.4]} 54. Rd7
{[%clk 0:00:22.1]} 54... Rd4 {[%clk 0:00:01.4]} 55. Rd8 {[%clk 0:00:17.1]} 55...
Rxd6 {[%clk 0:00:01.2]} 56. Rxd6 {[%clk 0:00:15.9]} 1-0

[Event "Early-Titled-Tuesday-Blitz-April-02-2024"]
[Site "Chess.com"]
[Date "2024.04.02"]
[Round "3"]
[White "sorch29"]
[Black "KarolKacprzak"]
[Result "0-1"]
[WhiteElo "2433"]
[BlackElo "2740"]
[TimeControl "180+1"]
[EndTime "8:28:34 PDT"]
[Termination "KarolKacprzak won on time"]

1. d4 {[%clk 0:02:55.4]} 1... Nf6 {[%clk 0:02:59.1]} 2. c4 {[%clk 0:02:54.1]}
2... e6 {[%clk 0:02:59.6]} 3. Nf3 {[%clk 0:02:51.5]} 3... d5 {[%clk 0:02:59.8]}
4. g3 {[%clk 0:02:51.7]} 4... Be7 {[%clk 0:02:57.7]} 5. Bg2 {[%clk 0:02:51.9]}
5... O-O {[%clk 0:02:58.3]} 6. O-O {[%clk 0:02:52.5]} 6... c6 {[%clk 0:02:59]}
7. Nbd2 {[%clk 0:02:50.9]} 7... b6 {[%clk 0:02:58.3]} 8. Qc2 {[%clk 0:02:51.5]}
8... Bb7 {[%clk 0:02:57.3]} 9. e4 {[%clk 0:02:52.1]} 9... Na6 {[%clk 0:02:57.9]}
10. e5 {[%clk 0:02:49.2]} 10... Nd7 {[%clk 0:02:54.8]} 11. cxd5 {[%clk
0:02:43.9]} 11... cxd5 {[%clk 0:02:47.4]} 12. a3 {[%clk 0:02:29.8]} 12... Rc8
{[%clk 0:02:47.7]} 13. Qd1 {[%clk 0:02:23.6]} 13... Nab8 {[%clk 0:02:39.8]} 14.
Re1 {[%clk 0:02:23.1]} 14... Qc7 {[%clk 0:02:31.2]} 15. Bf1 {[%clk 0:02:20.8]}
15... Qc2 {[%clk 0:02:29.4]} 16. Qxc2 {[%clk 0:02:20.3]} 16... Rxc2 {[%clk
0:02:30.3]} 17. Bd3 {[%clk 0:02:20.5]} 17... Rc7 {[%clk 0:02:30.6]} 18. Nf1
{[%clk 0:01:46.5]} 18... Rfc8 {[%clk 0:02:24.7]} 19. Bd2 {[%clk 0:01:41]} 19...
Nc6 {[%clk 0:02:16.4]} 20. Rac1 {[%clk 0:01:26.6]} 20... Ndb8 {[%clk 0:02:13.7]}
21. Rc3 {[%clk 0:01:02.6]} 21... h6 {[%clk 0:02:09]} 22. Rec1 {[%clk 0:01:01.6]}
22... Bd8 {[%clk 0:02:08.9]} 23. h4 {[%clk 0:00:59.4]} 23... Ba6 {[%clk
0:02:02.4]} 24. Bxa6 {[%clk 0:00:56.3]} 24... Nxa6 {[%clk 0:02:03.3]} 25. Be3
{[%clk 0:00:45.2]} 25... Nab8 {[%clk 0:01:45.8]} 26. N1d2 {[%clk 0:00:42]} 26...
Nd7 {[%clk 0:01:43]} 27. h5 {[%clk 0:00:41.6]} 27... f6 {[%clk 0:01:38.8]} 28.
exf6 {[%clk 0:00:20.2]} 28... gxf6 {[%clk 0:01:24.7]} 29. Bxh6 {[%clk 0:00:20]}
29... e5 {[%clk 0:01:25.2]} 30. Be3 {[%clk 0:00:13.9]} 30... Nf8 {[%clk
0:01:15.5]} 31. b4 {[%clk 0:00:13]} 31... b5 {[%clk 0:00:42.6]} 32. Nb3 {[%clk
0:00:12.6]} 32... Ne6 {[%clk 0:00:31]} 33. Kg2 {[%clk 0:00:12.8]} 33... e4
{[%clk 0:00:26.2]} 34. Nh4 {[%clk 0:00:08.8]} 34... Ne7 {[%clk 0:00:24.4]} 35.
Rxc7 {[%clk 0:00:08.4]} 35... Rxc7 {[%clk 0:00:25.3]} 36. Rxc7 {[%clk
0:00:08.6]} 36... Bxc7 {[%clk 0:00:26.2]} 37. Nc5 {[%clk 0:00:07]} 37... Ng7
{[%clk 0:00:20.4]} 38. h6 {[%clk 0:00:06.4]} 38... Ngf5 {[%clk 0:00:20.1]} 39.
Nxf5 {[%clk 0:00:06.2]} 39... Nxf5 {[%clk 0:00:21]} 40. Ne6 {[%clk 0:00:05.7]}
40... Bd6 {[%clk 0:00:20.7]} 41. Nd8 {[%clk 0:00:05]} 41... Kh7 {[%clk
0:00:20.1]} 42. Nf7 {[%clk 0:00:04.5]} 42... Be7 {[%clk 0:00:18.4]} 43. g4
{[%clk 0:00:02.6]} 43... Nxe3+ {[%clk 0:00:13.5]} 44. fxe3 {[%clk 0:00:03.5]}
44... Kg6 {[%clk 0:00:14]} 45. h7 {[%clk 0:00:01.7]} 45... Kxh7 {[%clk
0:00:13.8]} 46. g5 {[%clk 0:00:02]} 46... fxg5 {[%clk 0:00:06]} 47. Ne5 {[%clk
0:00:02.4]} 47... Bd6 {[%clk 0:00:05.1]} 48. Nc6 {[%clk 0:00:01.9]} 48... a6
{[%clk 0:00:05.5]} 0-1

[Event "Early-Titled-Tuesday-Blitz-April-02-2024"]
[Site "Chess.com"]
[Date "2024.04.02"]
[Round "3"]
[White "VeraVujovic"]
[Black "Rawnsdale"]
[Result "1/2-1/2"]
[WhiteElo "2225"]
[BlackElo "2559"]
[TimeControl "180+1"]
[EndTime "8:28:34 PDT"]
[Termination "Game drawn - insufficient material"]

1. e4 {[%clk 0:03:00.9]} 1... c6 {[%clk 0:03:00.1]} 2. c4 {[%clk 0:02:59.2]}
2... d5 {[%clk 0:02:57.8]} 3. cxd5 {[%clk 0:02:58.9]} 3... cxd5 {[%clk
0:02:58.7]} 4. exd5 {[%clk 0:02:59.6]} 4... Nf6 {[%clk 0:02:58.8]} 5. Nc3 {[%clk
0:03:00.5]} 5... g6 {[%clk 0:02:54.5]} 6. Bb5+ {[%clk 0:02:48.9]} 6... Bd7
{[%clk 0:02:53.5]} 7. Qa4 {[%clk 0:02:48.1]} 7... Bg7 {[%clk 0:02:50.1]} 8. Nf3
{[%clk 0:02:39.1]} 8... O-O {[%clk 0:02:49.5]} 9. O-O {[%clk 0:02:38.9]} 9... a6
{[%clk 0:01:50.8]} 10. Bxd7 {[%clk 0:02:36.1]} 10... Nbxd7 {[%clk 0:01:51.4]}
11. Qb3 {[%clk 0:02:34.7]} 11... Nc5 {[%clk 0:01:46.8]} 12. Qc4 {[%clk
0:02:34.8]} 12... Rc8 {[%clk 0:01:46.7]} 13. b4 {[%clk 0:02:23.3]} 13... Nce4
{[%clk 0:01:39.5]} 14. Qd3 {[%clk 0:02:19.5]} 14... Nxc3 {[%clk 0:01:37.4]} 15.
dxc3 {[%clk 0:02:20.4]} 15... Qxd5 {[%clk 0:01:37.3]} 16. Rd1 {[%clk 0:02:15.6]}
16... Qxd3 {[%clk 0:01:27.7]} 17. Rxd3 {[%clk 0:02:16.5]} 17... Ne4 {[%clk
0:01:27.8]} 18. Bb2 {[%clk 0:01:56.8]} 18... Nxc3 {[%clk 0:01:27.3]} 19. Bxc3
{[%clk 0:01:53.5]} 19... Bxc3 {[%clk 0:01:28.2]} 20. Rb1 {[%clk 0:01:49.9]}
20... Rfd8 {[%clk 0:01:23.3]} 21. Re3 {[%clk 0:01:45.8]} 21... Bf6 {[%clk
0:01:21.2]} 22. g4 {[%clk 0:01:40.1]} 22... h6 {[%clk 0:01:20.4]} 23. h4 {[%clk
0:01:38.5]} 23... e6 {[%clk 0:01:12]} 24. b5 {[%clk 0:01:34.9]} 24... a5 {[%clk
0:01:11.9]} 25. Re4 {[%clk 0:01:32.7]} 25... Rc2 {[%clk 0:01:08.2]} 26. a4
{[%clk 0:01:30.6]} 26... Rd3 {[%clk 0:01:03.4]} 27. Rf4 {[%clk 0:01:28]} 27...
Bg7 {[%clk 0:00:58]} 28. Ne1 {[%clk 0:01:22.9]} 28... e5 {[%clk 0:00:37]} 29.
Nxd3 {[%clk 0:00:32.4]} 29... exf4 {[%clk 0:00:36.9]} 30. Nxf4 {[%clk
0:00:33.3]} 30... Bd4 {[%clk 0:00:35]} 31. Nd3 {[%clk 0:00:28.2]} 31... Rd2
{[%clk 0:00:28.4]} 32. Rb3 {[%clk 0:00:27]} 32... Ra2 {[%clk 0:00:28.5]} 33. b6
{[%clk 0:00:17.1]} 33... Rxa4 {[%clk 0:00:27.2]} 34. Rb5 {[%clk 0:00:17.3]}
34... Ra3 {[%clk 0:00:22.8]} 35. Nf4 {[%clk 0:00:13.4]} 35... Ra2 {[%clk
0:00:18.3]} 36. Nd3 {[%clk 0:00:11.5]} 36... Rd2 {[%clk 0:00:18.5]} 37. Ne5
{[%clk 0:00:06.6]} 37... Bxe5 {[%clk 0:00:17.2]} 38. Rxe5 {[%clk 0:00:06.3]}
38... a4 {[%clk 0:00:15.5]} 39. Ra5 {[%clk 0:00:06.7]} 39... Rd4 {[%clk
0:00:15.1]} 40. Ra7 {[%clk 0:00:06.8]} 40... Rb4 {[%clk 0:00:15]} 41. Rxb7
{[%clk 0:00:07.1]} 41... a3 {[%clk 0:00:15.1]} 42. Rb8+ {[%clk 0:00:07.2]} 42...
Kg7 {[%clk 0:00:15.3]} 43. Ra8 {[%clk 0:00:04.8]} 43... Rxb6 {[%clk 0:00:13.6]}
44. Rxa3 {[%clk 0:00:05.1]} 44... Rb4 {[%clk 0:00:14.5]} 45. f3 {[%clk
0:00:05.4]} 45... Rb2 {[%clk 0:00:14.3]} 46. Re3 {[%clk 0:00:04.6]} 46... Kf6
{[%clk 0:00:14.5]} 47. Rd3 {[%clk 0:00:05.1]} 47... h5 {[%clk 0:00:14.7]} 48.
Rd6+ {[%clk 0:00:05.2]} 48... Ke5 {[%clk 0:00:14.2]} 49. Rd7 {[%clk 0:00:05.6]}
49... f6 {[%clk 0:00:11.5]} 50. Rg7 {[%clk 0:00:05.5]} 50... hxg4 {[%clk
0:00:08.5]} 51. fxg4 {[%clk 0:00:05.7]} 51... Kf4 {[%clk 0:00:08.9]} 52. Rxg6
{[%clk 0:00:06]} 52... Kg3 {[%clk 0:00:09.3]} 53. Kf1 {[%clk 0:00:05.7]} 53...
Kxh4 {[%clk 0:00:09.1]} 54. Rxf6 {[%clk 0:00:06]} 54... Kxg4 {[%clk 0:00:09.2]}
55. Rf2 {[%clk 0:00:06.9]} 55... Rxf2+ {[%clk 0:00:08.4]} 56. Kxf2 {[%clk
0:00:07.8]} 1/2-1/2

[Event "Early-Titled-Tuesday-Blitz-April-02-2024"]
[Site "Chess.com"]
[Date "2024.04.02"]
[Round "3"]
[White "Casper"]
[Black "Witik"]
[Result "0-1"]
[WhiteElo "2503"]
[BlackElo "2776"]
[TimeControl "180+1"]
[EndTime "8:28:35 PDT"]
[Termination "Witik won on time"]

1. e4 {[%clk 0:03:00.9]} 1... e5 {[%clk 0:02:59.5]} 2. Nf3 {[%clk 0:03:00.8]}
2... Nc6 {[%clk 0:02:59.7]} 3. g3 {[%clk 0:03:01]} 3... Nf6 {[%clk 0:02:57.7]}
4. d3 {[%clk 0:03:00.9]} 4... d5 {[%clk 0:02:56.7]} 5. exd5 {[%clk 0:03:00.8]}
5... Nxd5 {[%clk 0:02:56.4]} 6. Bg2 {[%clk 0:03:01.7]} 6... Be7 {[%clk
0:02:49.9]} 7. O-O {[%clk 0:03:01.8]} 7... O-O {[%clk 0:02:50.2]} 8. Re1 {[%clk
0:03:01.8]} 8... f6 {[%clk 0:02:28.5]} 9. a3 {[%clk 0:03:02.2]} 9... Bg4 {[%clk
0:02:23.3]} 10. b4 {[%clk 0:03:00.5]} 10... Kh8 {[%clk 0:02:13.1]} 11. h3 {[%clk
0:03:00.3]} 11... Bh5 {[%clk 0:02:12.4]} 12. Bb2 {[%clk 0:02:56.5]} 12... a5
{[%clk 0:01:54.5]} 13. b5 {[%clk 0:02:52]} 13... Nd4 {[%clk 0:01:53.6]} 14. Bxd4
{[%clk 0:02:52.6]} 14... exd4 {[%clk 0:01:53.9]} 15. g4 {[%clk 0:02:53.1]} 15...
Bf7 {[%clk 0:01:48.6]} 16. Nxd4 {[%clk 0:02:53.7]} 16... Nf4 {[%clk 0:01:48.7]}
17. Nf5 {[%clk 0:02:47.8]} 17... Bc5 {[%clk 0:01:44.8]} 18. d4 {[%clk
0:02:42.3]} 18... Bb6 {[%clk 0:01:45.1]} 19. c3 {[%clk 0:02:34.6]} 19... a4
{[%clk 0:01:33.9]} 20. Bxb7 {[%clk 0:02:34.2]} 20... Nxh3+ {[%clk 0:01:29.8]}
21. Kh2 {[%clk 0:02:31.9]} 21... Nf4 {[%clk 0:01:04]} 22. Qf3 {[%clk 0:02:30.6]}
22... Bd5 {[%clk 0:01:02.8]} 23. Bxd5 {[%clk 0:02:22.2]} 23... Nxd5 {[%clk
0:01:03.7]} 24. c4 {[%clk 0:02:22.6]} 24... Ba5 {[%clk 0:01:00.7]} 25. Re6
{[%clk 0:02:07.5]} 25... Nb6 {[%clk 0:00:57.8]} 26. Re7 {[%clk 0:01:33.6]} 26...
g6 {[%clk 0:00:39.6]} 27. Qh3 {[%clk 0:01:31.7]} 27... h5 {[%clk 0:00:39.6]} 28.
Qe3 {[%clk 0:01:12]} 28... g5 {[%clk 0:00:35.5]} 29. Qh3 {[%clk 0:00:54.1]}
29... h4 {[%clk 0:00:34.4]} 30. Nxh4 {[%clk 0:00:54.7]} 30... Qxe7 {[%clk
0:00:32.1]} 31. Ng6+ {[%clk 0:00:54.9]} 31... Kg7 {[%clk 0:00:30]} 32. Nxe7
{[%clk 0:00:55.8]} 32... Rh8 {[%clk 0:00:30.6]} 33. Nf5+ {[%clk 0:00:54.2]}
33... Kg6 {[%clk 0:00:27.4]} 34. Ne3 {[%clk 0:00:36.2]} 34... Rxh3+ {[%clk
0:00:20.2]} 35. Kxh3 {[%clk 0:00:12.7]} 35... Rd8 {[%clk 0:00:20.9]} 36. d5
{[%clk 0:00:11.5]} 36... Nd7 {[%clk 0:00:21.3]} 37. Ra2 {[%clk 0:00:09.8]} 37...
Bb6 {[%clk 0:00:16.5]} 38. Nf5 {[%clk 0:00:07.2]} 38... Ne5 {[%clk 0:00:16]} 39.
Rc2 {[%clk 0:00:07.4]} 39... Bc5 {[%clk 0:00:15.8]} 40. Nc3 {[%clk 0:00:07]}
40... Rh8+ {[%clk 0:00:14.8]} 41. Kg2 {[%clk 0:00:06.9]} 41... Nxg4 {[%clk
0:00:15.4]} 42. Nxa4 {[%clk 0:00:05.8]} 42... Bxf2 {[%clk 0:00:14.5]} 43. c5
{[%clk 0:00:02.9]} 43... Rh2+ {[%clk 0:00:12.4]} 44. Kf3 {[%clk 0:00:03.4]}
44... Kxf5 {[%clk 0:00:12.2]} 45. b6 {[%clk 0:00:02.8]} 45... Ne5+ {[%clk
0:00:12.6]} 46. Ke2 {[%clk 0:00:02.5]} 46... Bxc5+ {[%clk 0:00:12.9]} 47. Kd1
{[%clk 0:00:02.9]} 47... Rxc2 {[%clk 0:00:13.1]} 48. Kxc2 {[%clk 0:00:03.8]}
48... Bxb6 {[%clk 0:00:13.2]} 49. d6 {[%clk 0:00:04.2]} 49... Ke6 {[%clk
0:00:11.4]} 50. dxc7 {[%clk 0:00:02.5]} 50... Bxc7 {[%clk 0:00:11.9]} 51. Nc5+
{[%clk 0:00:03.4]} 51... Kd5 {[%clk 0:00:12.3]} 0-1

[Event "Early-Titled-Tuesday-Blitz-April-02-2024"]
[Site "Chess.com"]
[Date "2024.04.02"]
[Round "3"]
[White "Alexchess1984"]
[Black "LeoLV10"]
[Result "1-0"]
[WhiteElo "2768"]
[BlackElo "2520"]
[TimeControl "180+1"]
[EndTime "8:28:35 PDT"]
[Termination "Alexchess1984 won by checkmate"]

1. e4 {[%clk 0:03:00.9]} 1... c6 {[%clk 0:02:53.6]} 2. d4 {[%clk 0:02:59.2]}
2... d5 {[%clk 0:02:54.5]} 3. exd5 {[%clk 0:02:59.6]} 3... cxd5 {[%clk
0:02:55.4]} 4. c4 {[%clk 0:02:59.7]} 4... Nf6 {[%clk 0:02:55.1]} 5. Nc3 {[%clk
0:02:59.4]} 5... Nc6 {[%clk 0:02:55.1]} 6. Nf3 {[%clk 0:02:58.7]} 6... Be6
{[%clk 0:02:45.2]} 7. cxd5 {[%clk 0:02:55.1]} 7... Nxd5 {[%clk 0:02:43.7]} 8.
Bd3 {[%clk 0:02:55.5]} 8... g6 {[%clk 0:02:40.7]} 9. O-O {[%clk 0:02:48.3]} 9...
Bg7 {[%clk 0:02:40.3]} 10. Ng5 {[%clk 0:02:48]} 10... Nxd4 {[%clk 0:02:23.7]}
11. Nxe6 {[%clk 0:02:42.6]} 11... Nxe6 {[%clk 0:02:10]} 12. Bb5+ {[%clk
0:02:39.4]} 12... Kf8 {[%clk 0:02:03.5]} 13. Qxd5 {[%clk 0:02:37.5]} 13... Qb6
{[%clk 0:01:53.4]} 14. Na4 {[%clk 0:02:33.8]} 14... Qc7 {[%clk 0:01:35.3]} 15.
Be3 {[%clk 0:02:28]} 15... Rd8 {[%clk 0:01:32.8]} 16. Qb3 {[%clk 0:02:26.5]}
16... Be5 {[%clk 0:01:22.9]} 17. h3 {[%clk 0:02:23.6]} 17... Kg7 {[%clk
0:01:19.2]} 18. Rac1 {[%clk 0:02:22.2]} 18... Qb8 {[%clk 0:01:19.1]} 19. Bc4
{[%clk 0:02:18.5]} 19... Nc7 {[%clk 0:01:08.1]} 20. Bxf7 {[%clk 0:01:58]} 20...
e6 {[%clk 0:01:00.5]} 21. Bxe6 {[%clk 0:01:55.1]} 21... Rhe8 {[%clk 0:00:50.2]}
22. Bg4 {[%clk 0:01:52.6]} 22... Nd5 {[%clk 0:00:47.4]} 23. Bg5 {[%clk
0:01:46.5]} 23... Rd6 {[%clk 0:00:42]} 24. Rfd1 {[%clk 0:01:41.6]} 24... h6
{[%clk 0:00:40.8]} 25. Rxd5 {[%clk 0:01:35]} 25... hxg5 {[%clk 0:00:40.9]} 26.
Rxd6 {[%clk 0:01:33.2]} 26... Bxd6 {[%clk 0:00:40.9]} 27. Rf1 {[%clk 0:01:30.5]}
27... b6 {[%clk 0:00:36.1]} 28. Qc3+ {[%clk 0:01:30.1]} 28... Be5 {[%clk
0:00:35.6]} 29. Qc6 {[%clk 0:01:29]} 29... Re7 {[%clk 0:00:32.6]} 30. Nc3 {[%clk
0:01:24.5]} 30... Qf8 {[%clk 0:00:32.1]} 31. Nd5 {[%clk 0:01:19.9]} 31... Rf7
{[%clk 0:00:28.6]} 32. Ne3 {[%clk 0:00:58.5]} 32... Bd4 {[%clk 0:00:25.9]} 33.
Qe4 {[%clk 0:00:52.3]} 33... Bc5 {[%clk 0:00:22.8]} 34. b4 {[%clk 0:00:43.5]}
34... Bxb4 {[%clk 0:00:19.2]} 35. Qe5+ {[%clk 0:00:34.1]} 35... Kh6 {[%clk
0:00:19.8]} 36. Be6 {[%clk 0:00:26.2]} 36... Bd6 {[%clk 0:00:16.1]} 37. Ng4+
{[%clk 0:00:22.6]} 37... Kh5 {[%clk 0:00:16.1]} 38. Qe2 {[%clk 0:00:18.7]} 38...
Re7 {[%clk 0:00:14.9]} 39. Nf6+ {[%clk 0:00:08.4]} 39... Kh6 {[%clk 0:00:15.2]}
40. Nd5 {[%clk 0:00:07.9]} 40... Re8 {[%clk 0:00:15.2]} 41. h4 {[%clk
0:00:06.7]} 41... gxh4 {[%clk 0:00:14]} 42. Qe3+ {[%clk 0:00:06.7]} 42... g5
{[%clk 0:00:14.4]} 43. Kh1 {[%clk 0:00:05.2]} 43... Bc5 {[%clk 0:00:14.8]} 44.
Qe5 {[%clk 0:00:04.2]} 44... Bd6 {[%clk 0:00:14.6]} 45. Qe4 {[%clk 0:00:04.1]}
45... Qg7 {[%clk 0:00:13.8]} 46. f4 {[%clk 0:00:03.4]} 46... gxf4 {[%clk
0:00:10.5]} 47. Nxf4 {[%clk 0:00:03.3]} 47... Qg5 {[%clk 0:00:09.2]} 48. Nh3
{[%clk 0:00:03.1]} 48... Qg3 {[%clk 0:00:09.2]} 49. Rf6+ {[%clk 0:00:02.2]}
49... Kg7 {[%clk 0:00:08.9]} 50. Rf7+ {[%clk 0:00:02.4]} 50... Kh6 {[%clk
0:00:08.8]} 51. Qh7# {[%clk 0:00:02.6]} 1-0

[Event "Early-Titled-Tuesday-Blitz-April-02-2024"]
[Site "Chess.com"]
[Date "2024.04.02"]
[Round "3"]
[White "SultaiC"]
[Black "jumpingknight20"]
[Result "0-1"]
[WhiteElo "2500"]
[BlackElo "2679"]
[TimeControl "180+1"]
[EndTime "8:28:38 PDT"]
[Termination "jumpingknight20 won by checkmate"]

1. e4 {[%clk 0:03:00.9]} 1... g6 {[%clk 0:03:00]} 2. d4 {[%clk 0:03:00.5]} 2...
Bg7 {[%clk 0:03:00.4]} 3. c3 {[%clk 0:03:00.5]} 3... d6 {[%clk 0:02:59]} 4. Nf3
{[%clk 0:02:59.4]} 4... Nf6 {[%clk 0:02:57.6]} 5. Bd3 {[%clk 0:03:00.3]} 5...
O-O {[%clk 0:02:56.8]} 6. O-O {[%clk 0:03:01]} 6... Nbd7 {[%clk 0:02:47.4]} 7.
h3 {[%clk 0:03:01.5]} 7... e5 {[%clk 0:02:47.5]} 8. Be3 {[%clk 0:03:02.2]} 8...
c6 {[%clk 0:02:46]} 9. Qd2 {[%clk 0:03:02.5]} 9... Qc7 {[%clk 0:02:46.2]} 10.
Bh6 {[%clk 0:03:02.6]} 10... Re8 {[%clk 0:02:41.8]} 11. Na3 {[%clk 0:02:58.4]}
11... exd4 {[%clk 0:02:34]} 12. cxd4 {[%clk 0:02:57.8]} 12... Nxe4 {[%clk
0:02:29.3]} 13. Bxe4 {[%clk 0:02:57.9]} 13... Rxe4 {[%clk 0:02:30.1]} 14. Rfe1
{[%clk 0:02:49]} 14... Nf6 {[%clk 0:02:29]} 15. Rxe4 {[%clk 0:02:41.6]} 15...
Nxe4 {[%clk 0:02:29.9]} 16. Re1 {[%clk 0:02:39.2]} 16... d5 {[%clk 0:02:16]} 17.
Qg5 {[%clk 0:02:13.9]} 17... Bxh3 {[%clk 0:02:00.6]} 18. Qh4 {[%clk 0:02:07.4]}
18... Bf5 {[%clk 0:01:51]} 19. Bf4 {[%clk 0:02:01.1]} 19... Qd8 {[%clk
0:01:44.7]} 20. Qh2 {[%clk 0:01:55.1]} 20... h5 {[%clk 0:01:43.8]} 21. Nc2
{[%clk 0:01:54.9]} 21... Nxf2 {[%clk 0:01:40.9]} 22. Kxf2 {[%clk 0:01:49]} 22...
Bxc2 {[%clk 0:01:40.4]} 23. g4 {[%clk 0:01:45.1]} 23... h4 {[%clk 0:01:30.5]}
24. Bg5 {[%clk 0:01:39.7]} 24... f6 {[%clk 0:01:28]} 25. Bxh4 {[%clk 0:01:39.8]}
25... g5 {[%clk 0:01:23.1]} 26. Bg3 {[%clk 0:01:24.3]} 26... Bg6 {[%clk
0:01:09.1]} 27. Re3 {[%clk 0:01:07]} 27... Qd7 {[%clk 0:01:08.2]} 28. Qh3 {[%clk
0:01:02.3]} 28... Re8 {[%clk 0:01:06.3]} 29. Rxe8+ {[%clk 0:00:57.9]} 29... Qxe8
{[%clk 0:01:07.2]} 30. Qf1 {[%clk 0:00:57.4]} 30... Qe4 {[%clk 0:01:01.9]} 31.
Qe1 {[%clk 0:00:54.2]} 31... Qxg4 {[%clk 0:00:56.7]} 32. Qe7 {[%clk 0:00:52.4]}
32... Be4 {[%clk 0:00:54.8]} 33. Nh2 {[%clk 0:00:44.3]} 33... Qf5+ {[%clk
0:00:54.8]} 34. Ke1 {[%clk 0:00:37.1]} 34... Bd3 {[%clk 0:00:32.1]} 35. Qe8+
{[%clk 0:00:34.6]} 35... Bf8 {[%clk 0:00:31.3]} 36. Kd2 {[%clk 0:00:28.3]} 36...
Qe4 {[%clk 0:00:18.5]} 37. Qxe4 {[%clk 0:00:16.3]} 37... Bxe4 {[%clk 0:00:19.4]}
38. a3 {[%clk 0:00:14.3]} 38... f5 {[%clk 0:00:17.9]} 39. Be5 {[%clk 0:00:14.9]}
39... Kf7 {[%clk 0:00:17.9]} 40. Ke3 {[%clk 0:00:15.3]} 40... f4+ {[%clk
0:00:17.3]} 41. Kf2 {[%clk 0:00:15.6]} 41... Kg6 {[%clk 0:00:15.4]} 42. Ng4
{[%clk 0:00:15.9]} 42... Kf5 {[%clk 0:00:16]} 43. Nf6 {[%clk 0:00:16.1]} 43...
g4 {[%clk 0:00:16.4]} 44. Nh5 {[%clk 0:00:13.3]} 44... g3+ {[%clk 0:00:16.3]}
45. Kg1 {[%clk 0:00:12.6]} 45... Bh6 {[%clk 0:00:16.6]} 46. Nf6 {[%clk
0:00:07.7]} 46... Bf3 {[%clk 0:00:10.8]} 47. Ng8 {[%clk 0:00:07.4]} 47... Bg5
{[%clk 0:00:10.8]} 48. b4 {[%clk 0:00:04.5]} 48... Kg4 {[%clk 0:00:09.6]} 49.
Bf6 {[%clk 0:00:03.8]} 49... Be4 {[%clk 0:00:08.8]} 50. Be5 {[%clk 0:00:02.7]}
50... f3 {[%clk 0:00:08.7]} 51. Bd6 {[%clk 0:00:03.1]} 51... f2+ {[%clk
0:00:08.7]} 52. Kf1 {[%clk 0:00:03.9]} 52... Bd3+ {[%clk 0:00:09.4]} 53. Kg2
{[%clk 0:00:04.3]} 53... f1=Q# {[%clk 0:00:10.3]} 0-1